bitfinex-derivatives/quotes_BTCF0:USTF0_20250218
["timestamp","ask_amount","ask_price","bid_price","bid_amount"]
[1739892613000,0.2095082,95479.0,95473.0,0.062]
[1739892614596,0.22248347,95479.0,95473.0,0.2715199]
[1739892614794,0.2095082,95479.0,95473.0,0.062]
[1739892614989,0.0645,95481.0,95479.0,0.2095074]
[1739892615392,0.09648158,95485.0,95482.0,0.2094998]
[1739892615704,0.09648158,95485.0,95483.0,0.2094986]
[1739892615896,0.09648158,95485.0,95484.0,0.0655]
[1739892616494,0.45728158,95485.0,95484.0,0.0655]
[1739892617797,0.3608,95485.0,95484.0,0.0655]
[1739892619695,0.3608,95485.0,95477.0,0.00015712]
[1739892619696,0.20951,95478.0,95477.0,0.00015712]
[1739892621800,0.3608,95485.0,95483.0,0.2094979]
[1739892622009,0.3608,95489.0,95484.0,0.0608]
[1739892622306,0.2094888,95488.0,95485.0,0.3297745]
[1739892622505,0.2094904,95487.0,95485.0,0.2094945]
[1739892623107,0.3608,95489.0,95484.0,0.0608]
[1739892623309,0.2094946,95485.0,95484.0,0.0608]
[1739892623913,0.3608,95489.0,95484.0,0.0608]
[1739892624098,0.3608,95489.0,95486.0,0.2094912]
[1739892624410,0.3608,95489.0,95488.0,0.2094881]
[1739892624707,0.22914764,95497.0,95493.0,0.2094754]
[1739892624907,0.22221634,95497.0,95494.0,0.2094745]
[1739892625109,0.209471,95496.0,95494.0,0.2094745]
[1739892625312,0.2094753,95494.0,95488.0,0.2094877]
[1739892625512,0.2094753,95494.0,95492.0,0.209479]
[1739892625807,0.2094647,95499.0,95494.0,0.2094739]
[1739892626110,0.2094672,95498.0,95494.0,0.2094739]
[1739892626312,0.07725901,95503.0,95494.0,0.2104739]
[1739892626513,0.209469,95497.0,95494.0,0.2104739]
[1739892626706,0.209469,95497.0,95495.0,0.2094707]
[1739892627012,0.3608,95499.0,95487.0,0.0617]
[1739892627206,0.3608,95499.0,95494.0,0.001]
[1739892627512,0.2094705,95496.0,95494.0,0.001]
[1739892628712,0.2094727,95495.0,95494.0,0.001]
[1739892628912,0.2094902,95487.0,95486.0,0.2094922]
[1739892630415,0.0604,95498.0,95487.0,0.2094901]
[1739892630617,0.3608,95499.0,95498.0,0.2094661]
[1739892631110,0.00015712,95504.0,95503.0,0.2094552]
[1739892631816,0.20961012,95504.0,95503.0,0.2094552]
[1739892633111,0.20961012,95504.0,95503.0,0.2104552]
[1739892634413,0.00015712,95504.0,95503.0,0.2104552]
[1739892634621,0.20961012,95504.0,95503.0,0.2104552]
[1739892635216,0.20961012,95504.0,95503.0,0.001]
[1739892641109,0.00015712,95504.0,95503.0,0.2104552]
[1739892642722,0.00015712,95504.0,95503.0,0.58384415]
[1739892644912,0.00157119,95507.0,95506.0,0.2094486]
[1739892645226,0.0668,95528.0,95505.0,0.0523624]
[1739892645413,0.0668,95528.0,95517.0,0.3608]
[1739892645615,0.0668,95528.0,95522.0,0.2094124]
[1739892646025,0.07968306,95528.0,95522.0,0.2094124]
[1739892646519,0.2094137,95522.0,95518.0,0.1894]
[1739892646923,0.2094137,95522.0,95518.0,0.3988205]
[1739892647320,0.2094137,95522.0,95520.0,0.2094176]
[1739892648426,0.0668,95528.0,95518.0,0.1894]
[1739892648626,0.0668,95528.0,95526.0,0.2094034]
[1739892648825,0.2762016,95528.0,95526.0,0.2094034]
[1739892649223,0.2762016,95528.0,95518.0,0.20217132]
[1739892649224,0.3608,95530.0,95518.0,0.32970275]
[1739892649414,0.36144,95540.0,95534.0,0.2093872]
[1739892649617,0.00064,95540.0,95534.0,0.2093872]
[1739892649820,0.01260821,95544.0,95534.0,0.2093872]
[1739892650125,0.1259,95548.0,95534.0,0.2093872]
[1739892650421,0.1259,95548.0,95534.0,0.2725872]
[1739892650628,0.2093749,95540.0,95534.0,0.2725872]
[1739892651128,0.01301818,95544.0,95534.0,0.2725872]
[1739892651426,0.01301818,95544.0,95534.0,0.2735872]
[1739892651728,0.2093676,95543.0,95534.0,0.2735872]
[1739892652423,0.01301818,95544.0,95534.0,0.4010872]
[1739892652629,0.20954203,95535.0,95534.0,0.001]
[1739892654429,0.00015703,95535.0,95534.0,0.2103872]
[1739892654623,0.20954203,95535.0,95534.0,0.001]
[1739892657131,0.2094266,95516.0,95515.0,0.00015703]
[1739892657427,0.7866266,95516.0,95515.0,0.00015703]
[1739892658327,0.2094595,95501.0,95500.0,0.91284]
[1739892659127,0.1294,95502.0,95488.0,0.3608]
[1739892659433,0.2094661,95498.0,95488.0,0.3608]
[1739892659623,0.2094661,95498.0,95490.0,0.00015703]
[1739892659933,0.2094815,95491.0,95490.0,0.00015703]
[1739892660323,0.5702815,95491.0,95490.0,0.00015703]
[1739892660534,0.3608,95491.0,95465.0,1.39808]
[1739892660833,0.2095216,95473.0,95466.0,0.1202]
[1739892661133,0.2095216,95473.0,95465.0,0.486]
[1739892661334,0.2095216,95473.0,95465.0,0.1244]
[1739892662533,0.3608,95470.0,95465.0,0.1244]
[1739892662734,0.3608,95470.0,95466.0,0.12024]
[1739892663132,0.3608,95470.0,95466.0,0.13319123]
[1739892663337,0.00015712,95479.0,95478.0,0.20951]
[1739892663531,0.00015712,95479.0,95478.0,0.57031]
[1739892663733,0.00015712,95479.0,95471.0,0.2095239]
[1739892663924,0.00015712,95479.0,95469.0,0.3608]
[1739892664131,0.00015712,95479.0,95466.0,0.01295123]
[1739892664132,0.3608,95477.0,95465.0,0.0617]
[1739892664338,0.3608,95469.0,95465.0,0.0617]
[1739892664643,0.3608,95469.0,95456.0,0.2095572]
[1739892664849,0.209536,95467.0,95458.0,0.0635]
[1739892665350,0.209536,95467.0,95459.0,0.01286173]
[1739892665547,0.2095481,95461.0,95459.0,0.01286173]
[1739892666541,0.3608,95460.0,95459.0,0.00015712]
[1739892666745,0.426,95460.0,95459.0,0.00015712]
[1739892666945,0.5544,95460.0,95459.0,0.00015712]
[1739892667346,0.5544,95460.0,95459.0,0.00315712]
[1739892667751,0.36405866,95460.0,95459.0,0.00315712]
[1739892667946,0.36405866,95460.0,95459.0,0.00015712]
[1739892668149,0.36505866,95460.0,95459.0,0.00015712]
[1739892668349,0.0672,95460.0,95459.0,0.00015712]
[1739892669547,0.001,95460.0,95459.0,0.00015712]
[1739892670042,0.001,95460.0,95459.0,0.01252248]
[1739892670248,0.001,95460.0,95459.0,0.06545712]
[1739892674443,0.001,95460.0,95459.0,0.00015712]
[1739892674954,0.1304,95460.0,95459.0,0.00015712]
[1739892675347,0.1944,95460.0,95459.0,0.00015712]
[1739892676141,0.20667214,95460.0,95459.0,0.00015712]
[1739892677961,0.0523882,95459.0,95435.0,0.1262]
[1739892678154,0.3608,95443.0,95435.0,0.1262]
[1739892678455,0.12653143,95450.0,95436.0,0.48104]
[1739892678657,0.2095914,95441.0,95436.0,0.3608]
[1739892678862,0.2095914,95441.0,95435.0,0.1262]
[1739892679163,0.2095914,95441.0,95438.0,0.3608]
[1739892679358,0.00015712,95448.0,95439.0,0.2095952]
[1739892679659,0.00015712,95448.0,95438.0,0.3608]
[1739892680162,0.2095838,95445.0,95438.0,0.3608]
[1739892680361,0.2095838,95445.0,95435.0,0.1312]
[1739892680563,0.209586,95444.0,95437.0,0.2095995]
[1739892680759,0.2095878,95443.0,95437.0,0.2095995]
[1739892681360,0.2095956,95439.0,95438.0,0.004]
[1739892681959,0.205601,95437.0,95434.0,0.3608]
[1739892682266,0.2096033,95436.0,95434.0,0.3608]
[1739892682665,0.00532197,95443.0,95434.0,0.3608]
[1739892682854,0.21490967,95443.0,95435.0,0.0661]
[1739892683050,0.0178571,95443.0,95436.0,0.0653]
[1739892683358,0.2095988,95438.0,95436.0,0.0653]
[1739892683559,0.0178571,95443.0,95436.0,0.0653]
[1739892683762,0.00532197,95443.0,95438.0,0.004]
[1739892683963,0.00532197,95443.0,95441.0,0.2095901]
[1739892684264,0.21490957,95443.0,95438.0,0.004]
[1739892684466,0.21490957,95443.0,95436.0,0.0673]
[1739892684650,0.00532197,95443.0,95436.0,0.07996796]
[1739892684858,0.00015712,95448.0,95446.0,0.2095802]
[1739892685168,0.00015712,95448.0,95447.0,0.0658]
[1739892685468,0.00015712,95448.0,95447.0,0.1296]
[1739892685672,0.00015712,95448.0,95442.0,0.3608]
[1739892687058,0.00015712,95448.0,95446.0,0.2095796]
[1739892687262,0.00015712,95448.0,95447.0,0.0645]
[1739892687661,0.00015712,95448.0,95442.0,0.3608]
[1739892688167,0.00015712,95448.0,95444.0,0.2095841]
[1739892688360,0.21073342,95448.0,95444.0,0.2095842]
[1739892688558,0.21073342,95448.0,95445.0,0.2095814]
[1739892688753,0.21073342,95448.0,95446.0,0.2095793]
[1739892688964,0.00115712,95448.0,95446.0,0.2095793]
[1739892690369,0.00015712,95448.0,95446.0,0.2095793]
[1739892690957,0.12653143,95470.0,95445.0,0.3608]
[1739892691163,0.2095478,95461.0,95457.0,0.2095561]
[1739892691363,0.1893,95468.0,95456.0,0.3608]
[1739892691564,0.00534417,95464.0,95463.0,0.2095417]
[1739892691864,0.1893,95468.0,95457.0,0.1234]
[1739892692065,0.2095373,95466.0,95463.0,0.2095412]
[1739892692462,0.20198405,95468.0,95458.0,0.0638]
[1739892692463,0.35621375,95468.0,95466.0,0.2095347]
[1739892692663,0.35621375,95468.0,95466.0,0.22205784]
[1739892694383,0.35621375,95468.0,95466.0,0.2095347]
[1739892694666,0.2095341,95467.0,95465.0,0.3608]
[1739892694866,0.35621375,95468.0,95457.0,0.1234]
[1739892694867,0.2095508,95460.0,95457.0,0.1234]
[1739892695071,0.2095508,95460.0,95457.0,0.06]
[1739892696171,0.2095508,95460.0,95458.0,0.2095528]
[1739892696474,0.2095508,95460.0,95459.0,0.2095517]
[1739892696663,0.124,95466.0,95433.0,0.3608]
[1739892696862,0.124,95466.0,95455.0,0.2095604]
[1739892697179,0.124,95466.0,95456.0,0.12024]
[1739892697368,0.004,95460.0,95454.0,0.07507165]
[1739892697564,0.004,95460.0,95459.0,0.2095517]
[1739892698063,0.127,95466.0,95465.0,0.2095385]
[1739892698264,0.003,95466.0,95465.0,0.2095385]
[1739892698669,0.00015712,95472.0,95471.0,0.2095254]
[1739892698860,0.00015712,95472.0,95464.0,0.3608]
[1739892698861,0.00157156,95483.0,95482.0,0.2095012]
[1739892699065,0.00157156,95483.0,95470.0,0.066]
[1739892699370,0.00157156,95483.0,95480.0,0.2095042]
[1739892699569,0.00157156,95483.0,95480.0,0.2095037]
[1739892699771,0.00157156,95483.0,95480.0,0.3608]
[1739892699972,0.00157156,95483.0,95482.0,0.2095012]
[1739892700678,0.2095067,95480.0,95476.0,0.209513]
[1739892700867,0.2095067,95480.0,95472.0,0.00015712]
[1739892700868,0.209521,95473.0,95472.0,0.00015712]
[1739892701679,0.570321,95473.0,95472.0,0.00015712]
[1739892702479,0.64730188,95473.0,95472.0,0.00015712]
[1739892702668,0.28650188,95473.0,95472.0,0.00015712]
[1739892703573,0.07698088,95473.0,95472.0,0.20968032]
[1739892703974,0.08398088,95473.0,95472.0,0.21068032]
[1739892704978,0.00157156,95483.0,95472.0,0.00115712]
[1739892705173,0.00157156,95483.0,95482.0,0.5703012]
[1739892705687,0.00015712,95491.0,95490.0,0.2094837]
[1739892705873,0.00015712,95491.0,95490.0,0.5702837]
[1739892706280,0.14960091,95493.0,95490.0,0.3608]
[1739892706483,0.30864613,95500.0,95499.0,0.2094639]
[1739892706675,0.30864613,95500.0,95499.0,0.5702639]
[1739892708182,0.00015712,95509.0,95499.0,0.37341883]
[1739892708483,0.00015712,95509.0,95508.0,0.3608]
[1739892714194,0.1251,95528.0,95508.0,0.3608]
[1739892714394,0.1251,95528.0,95524.0,0.3608]
[1739892714597,0.2094049,95526.0,95524.0,0.3608]
[1739892714897,0.3608,95539.0,95524.0,0.3608]
[1739892715093,0.209387,95535.0,95532.0,0.3608]
[1739892715290,0.0637,95536.0,95532.0,0.3608]
[1739892715493,0.20952653,95543.0,95532.0,0.3608]
[1739892715699,0.2093707,95542.0,95541.0,0.3608]
[1739892716295,0.00015703,95543.0,95541.0,0.58229868]
[1739892717091,0.20952563,95543.0,95541.0,0.3608]
[1739892718402,0.21052563,95543.0,95541.0,0.3618]
[1739892719100,0.21052563,95543.0,95541.0,0.001]
[1739892719291,0.0634,95542.0,95541.0,0.001]
[1739892719496,0.0634,95542.0,95541.0,0.12116]
[1739892720597,0.00115703,95543.0,95542.0,0.2093697]
[1739892720804,0.00115703,95543.0,95542.0,0.5701697]
[1739892721003,0.00115703,95543.0,95542.0,0.7564697]
[1739892721303,0.0647,95560.0,95542.0,0.5471]
[1739892721493,0.0647,95560.0,95557.0,0.2093358]
[1739892722002,0.0647,95560.0,95557.0,0.22164687]
[1739892722202,0.0647,95560.0,95554.0,0.3608]
[1739892722603,0.0657,95560.0,95554.0,0.570143]
[1739892723402,0.0657,95560.0,95554.0,0.3608]
[1739892723603,0.0657,95560.0,95558.0,0.2093339]
[1739892724110,0.0657,95560.0,95554.0,0.3608]
[1739892724414,0.2093401,95556.0,95554.0,0.3608]
[1739892724595,0.061,95555.0,95554.0,0.3608]
[1739892724798,0.061,95555.0,95554.0,0.48092]
[1739892725309,0.061,95555.0,95554.0,0.48192]
[1739892725699,0.061,95555.0,95554.0,0.12112]
[1739892726313,0.062,95555.0,95554.0,0.12112]
[1739892726708,0.001,95555.0,95554.0,0.12112]
[1739892726904,0.001,95555.0,95554.0,0.48192]
[1739892727705,0.2164,95559.0,95558.0,0.2093346]
[1739892727906,0.209291,95578.0,95567.0,0.2093149]
[1739892728115,0.269291,95578.0,95567.0,0.5701149]
[1739892728706,0.06,95578.0,95567.0,0.5701149]
[1739892729509,0.00110122,95568.0,95567.0,0.5711149]
[1739892729715,0.00110122,95568.0,95567.0,0.58377625]
[1739892731415,0.0614,95585.0,95584.0,0.2092777]
[1739892731614,0.0614,95585.0,95584.0,0.5700777]
[1739892731808,0.0614,95585.0,95584.0,0.3608]
[1739892732115,0.0614,95585.0,95584.0,0.48088]
[1739892732417,0.0614,95585.0,95584.0,0.12008]
[1739892732717,0.2092952,95576.0,95575.0,0.00015693]
[1739892734711,0.22148175,95576.0,95575.0,0.00015693]
[1739892735018,0.22148175,95576.0,95575.0,0.00115693]
[1739892735605,0.2092952,95576.0,95575.0,0.00115693]
[1739892738217,0.0584,95579.0,95575.0,0.00115693]
[1739892738404,0.209295,95577.0,95575.0,0.00115693]
[1739892738607,0.0582,95576.0,95575.0,0.00115693]
[1739892740511,0.0582,95576.0,95575.0,0.58319524]
[1739892740711,0.00060001,95584.0,95575.0,0.37389784]
[1739892741017,0.0614,95585.0,95576.0,0.0574]
[1739892741018,0.0582,95583.0,95576.0,0.0574]
[1739892741217,0.0582,95583.0,95575.0,0.36095693]
[1739892741413,0.2092952,95576.0,95575.0,0.36195693]
[1739892741824,0.2092952,95576.0,95575.0,0.36095693]
[1739892742013,0.2092952,95576.0,95575.0,0.36195693]
[1739892742719,0.2092952,95576.0,95575.0,0.00115693]
[1739892742925,0.2092952,95576.0,95561.0,0.3608]
[1739892742926,0.2093258,95562.0,95561.0,0.3608]
[1739892743224,0.0523265,95571.0,95554.0,0.9124]
[1739892743225,0.2093412,95555.0,95554.0,0.91304]
[1739892743420,0.2093412,95555.0,95554.0,0.9124]
[1739892743826,0.2093565,95548.0,95538.0,0.3608]
[1739892744323,0.2093565,95548.0,95545.0,0.00015693]
[1739892744620,0.22808752,95548.0,95542.0,0.06171621]
[1739892744822,0.22808752,95548.0,95527.0,0.913]
[1739892744823,0.2093762,95539.0,95538.0,1e-08]
[1739892745027,0.5701762,95539.0,95538.0,1e-08]
[1739892745222,0.22808752,95548.0,95538.0,1e-08]
[1739892745728,0.2093762,95540.0,95538.0,1e-08]
[1739892746427,0.00532711,95539.0,95538.0,1e-08]
[1739892747528,0.36612711,95539.0,95538.0,0.00100001]
[1739892748324,0.36912711,95539.0,95538.0,1e-08]
[1739892748525,0.36912711,95539.0,95533.0,0.05915693]
[1739892748718,0.2093872,95534.0,95533.0,0.05915693]
[1739892748915,0.00356001,95539.0,95533.0,0.05915693]
[1739892749119,0.006,95539.0,95538.0,0.001]
[1739892749818,0.00015701,95546.0,95538.0,0.001]
[1739892750015,0.2093171,95566.0,95545.0,0.3608]
[1739892750231,0.2213857,95566.0,95557.0,0.3608]
[1739892750423,0.2093171,95566.0,95558.0,0.0589]
[1739892750728,0.00531607,95568.0,95560.0,0.2093283]
[1739892750926,0.2093086,95570.0,95558.0,0.0589]
[1739892751131,0.21088291,95569.0,95558.0,0.0589]
[1739892751430,0.00157031,95569.0,95558.0,0.0589]
[1739892751730,0.2093209,95565.0,95558.0,0.0599]
[1739892752324,0.2093324,95559.0,95558.0,0.0599]
[1739892752523,0.5701324,95559.0,95558.0,0.001]
[1739892752825,0.2093324,95559.0,95558.0,0.001]
[1739892753229,0.209315,95567.0,95558.0,0.001]
[1739892753420,0.0618,95568.0,95558.0,0.001]
[1739892753421,0.2093251,95563.0,95558.0,0.001]
[1739892754340,0.00528621,95569.0,95555.0,0.2685395]
[1739892754530,0.2103211,95565.0,95555.0,0.2685395]
[1739892754732,0.2103211,95565.0,95556.0,0.2093377]
[1739892754930,0.2103211,95565.0,95561.0,0.3608]
[1739892755123,0.001,95565.0,95562.0,0.0622]
[1739892755332,0.001,95563.0,95562.0,0.2715258]
[1739892755725,0.001,95563.0,95562.0,0.0622]
[1739892756026,0.001,95563.0,95562.0,0.18228]
[1739892756927,0.00015681,95573.0,95572.0,0.2093039]
[1739892757128,0.00015681,95573.0,95572.0,0.5701039]
[1739892757528,0.2092575,95594.0,95572.0,0.3608]
[1739892757731,0.0584,95598.0,95579.0,0.2092877]
[1739892757932,0.0584,95598.0,95585.0,0.3608]
[1739892758130,0.01211054,95598.0,95585.0,0.3608]
[1739892758322,0.00518202,95591.0,95585.0,0.3608]
[1739892758729,0.2092696,95588.0,95585.0,0.3608]
[1739892758939,0.2092727,95587.0,95585.0,0.3608]
[1739892759123,0.2092784,95584.0,95580.0,0.0569]
[1739892759327,0.2092836,95582.0,95580.0,0.0569]
[1739892760335,0.2092685,95589.0,95580.0,0.6269859]
[1739892760523,0.00618202,95591.0,95581.0,0.0544]
[1739892760722,0.209281,95583.0,95581.0,0.0544]
[1739892762737,0.2092886,95579.0,95578.0,0.00015693]
[1739892763330,0.0567,95590.0,95580.0,0.2092854]
[1739892763534,0.36658203,95591.0,95580.0,0.2092854]
[1739892763730,0.2092801,95583.0,95581.0,0.06]
[1739892764030,0.2092801,95583.0,95582.0,0.1144]
[1739892764633,0.36662202,95591.0,95582.0,0.1144]
[1739892764836,0.36598202,95591.0,95582.0,0.3236819]
[1739892765634,0.36598202,95591.0,95584.0,0.2092757]
[1739892765827,0.2092719,95587.0,95584.0,0.2092757]
[1739892766023,0.2092798,95583.0,95582.0,0.4762]
[1739892766634,0.2092798,95583.0,95582.0,0.1154]
[1739892767137,0.3608,95585.0,95578.0,0.00015693]
[1739892767328,0.2092886,95579.0,95578.0,0.00015693]
[1739892769133,0.2092886,95579.0,95578.0,0.00115693]
[1739892774243,0.20928,95583.0,95580.0,0.209286]
[1739892774435,0.20928,95583.0,95581.0,0.1201]
[1739892774636,0.2164,95586.0,95581.0,0.1201]
[1739892774936,0.2164,95586.0,95582.0,0.2092811]
[1739892775441,0.2092818,95583.0,95581.0,0.1201]
[1739892775828,0.2102818,95583.0,95581.0,0.1211]
[1739892776236,0.2102818,95583.0,95581.0,0.0611]
[1739892776935,0.22246958,95583.0,95581.0,0.0611]
[1739892777934,0.22146958,95583.0,95582.0,0.001]
[1739892778346,0.2092818,95583.0,95582.0,0.001]
[1739892778638,0.209282,95582.0,95581.0,0.0611]
[1739892778843,0.001,95583.0,95581.0,0.0611]
[1739892779141,0.001,95583.0,95582.0,0.209282]
[1739892779345,0.3608,95585.0,95582.0,0.2211762]
[1739892779529,0.001,95583.0,95582.0,0.2221762]
[1739892780043,0.0234287,95584.0,95582.0,0.210282]
[1739892780246,0.3608,95585.0,95582.0,0.001]
[1739892780445,0.3608,95585.0,95584.0,0.2092777]
[1739892780834,0.2092798,95583.0,95582.0,0.001]
[1739892781040,0.2092798,95583.0,95582.0,0.12104]
[1739892781239,0.2092798,95583.0,95582.0,0.12004]
[1739892781437,0.3608,95585.0,95582.0,0.12004]
[1739892781637,0.1,95600.0,95582.0,0.48084]
[1739892781842,0.0083,95600.0,95599.0,0.5700448]
[1739892782846,0.3608,95619.0,95599.0,0.37267467]
[1739892783045,0.3608,95619.0,95608.0,0.3608]
[1739892783240,0.3608,95619.0,95599.0,0.37267467]
[1739892783241,0.3608,95619.0,95609.0,0.0604]
[1739892783443,0.2092187,95611.0,95609.0,0.0604]
[1739892783637,0.2092339,95604.0,95603.0,0.00015693]
[1739892785238,0.2092974,95575.0,95573.0,0.0609]
[1739892785650,0.2093105,95569.0,95568.0,0.0571]
[1739892785841,0.2093139,95568.0,95562.0,0.0609]
[1739892786048,0.2093139,95568.0,95566.0,0.1126]
[1739892786243,0.3608,95567.0,95566.0,0.0555]
[1739892786648,0.3608,95567.0,95561.0,0.0006]
[1739892786856,0.2093171,95566.0,95557.0,0.00015693]
[1739892787349,0.3608,95567.0,95557.0,0.00015693]
[1739892787756,0.2093171,95566.0,95557.0,0.00015693]
[1739892787947,0.4257171,95566.0,95557.0,0.00015693]
[1739892788855,0.2164,95566.0,95557.0,0.00015693]
[1739892789057,0.2164,95566.0,95557.0,0.20949343]
[1739892789247,0.2164,95566.0,95557.0,0.00015693]
[1739892790951,0.2164,95566.0,95565.0,0.21088884]
[1739892791150,0.11259145,95579.0,95565.0,0.00156954]
[1739892791349,0.11259145,95579.0,95573.0,0.2093006]
[1739892791553,0.11259145,95579.0,95569.0,0.01199813]
[1739892791878,0.2092963,95576.0,95566.0,0.1108]
[1739892792048,0.209314,95568.0,95566.0,0.1108]
[1739892792849,0.2093171,95566.0,95565.0,0.00156954]
[1739892794156,0.4257171,95566.0,95565.0,0.00156954]
[1739892794958,0.2093324,95559.0,95558.0,0.0551]
[1739892795154,0.5701324,95559.0,95558.0,0.0551]
[1739892796254,0.2093324,95559.0,95558.0,0.0551]
[1739892796958,0.3608,95564.0,95558.0,0.0551]
[1739892797151,0.2093303,95560.0,95558.0,0.0551]
[1739892798046,0.3608,95564.0,95557.0,0.00015693]
[1739892798251,0.2093346,95558.0,95557.0,0.00015693]
[1739892799256,0.4257346,95558.0,95557.0,0.00015693]
[1739892799764,0.209374,95540.0,95539.0,0.0574]
[1739892800846,0.22083468,95540.0,95539.0,0.0574]
[1739892801859,0.3608,95541.0,95539.0,0.0574]
[1739892802061,0.00015693,95549.0,95539.0,0.0574]
[1739892803062,0.2093703,95542.0,95539.0,0.0574]
[1739892803356,0.209374,95540.0,95539.0,0.0574]
[1739892804564,0.2093938,95531.0,95530.0,0.00015693]
[1739892804760,0.5701938,95531.0,95530.0,0.00015693]
[1739892807256,0.2093938,95531.0,95530.0,0.00015693]
[1739892808263,0.2094245,95517.0,95516.0,0.1738]
[1739892808459,0.5702245,95517.0,95516.0,0.1738]
[1739892809561,0.5702245,95517.0,95516.0,0.117]
[1739892809756,0.5702245,95517.0,95516.0,0.004]
[1739892809956,0.2094442,95508.0,95507.0,0.00015702]
[1739892810162,0.22125662,95508.0,95507.0,0.00015702]
[1739892810351,0.58205662,95508.0,95507.0,0.00015702]
[1739892811656,0.2094552,95503.0,95502.0,0.0551]
[1739892812152,0.2094595,95501.0,95488.0,0.1087]
[1739892812357,0.3608,95503.0,95488.0,0.1087]
[1739892812358,0.2094859,95489.0,95488.0,0.1087]
[1739892812558,0.5702859,95489.0,95488.0,0.1087]
[1739892812862,0.00015702,95498.0,95488.0,0.3181881]
[1739892813068,0.2094782,95493.0,95488.0,0.1087]
[1739892813369,0.00015702,95498.0,95493.0,0.209476]
[1739892813756,0.00015702,95498.0,95488.0,0.4695]
[1739892814158,0.2094859,95489.0,95488.0,0.1087]
[1739892814567,0.2094754,95494.0,95489.0,0.209485]
[1739892814867,0.00015702,95498.0,95489.0,0.209485]
[1739892815059,0.002,95489.0,95488.0,0.1087]
[1739892815361,0.002,95489.0,95488.0,0.3181881]
[1739892815569,0.002,95489.0,95488.0,0.1087]
[1739892815961,0.003,95494.0,95488.0,0.1087]
[1739892816268,0.003,95494.0,95493.0,0.5702771]
[1739892816563,0.00015702,95498.0,95493.0,0.3608]
[1739892816768,0.2094749,95494.0,95493.0,0.3608]
[1739892818270,0.2114749,95494.0,95493.0,0.3608]
[1739892818962,0.2094749,95494.0,95493.0,0.3608]
[1739892819162,0.2134749,95494.0,95493.0,0.3608]
[1739892820164,0.2134749,95494.0,95492.0,0.058]
[1739892820359,0.3608,95493.0,95492.0,0.058]
[1739892821772,0.3638,95493.0,95492.0,0.058]
[1739892822473,0.17612153,95493.0,95492.0,0.058]
[1739892823264,0.17312153,95493.0,95492.0,0.058]
[1739892823464,0.17512153,95493.0,95492.0,0.2674793]
[1739892823866,0.17512153,95493.0,95492.0,0.058]
[1739892824967,0.003,95493.0,95492.0,0.4188]
[1739892825767,0.00015702,95498.0,95497.0,0.2094683]
[1739892826574,0.00515765,95508.0,95501.0,0.2094582]
[1739892826770,0.00515765,95508.0,95505.0,0.3608]
[1739892826965,0.00515765,95508.0,95506.0,0.0602]
[1739892827171,0.00515765,95508.0,95506.0,0.07189238]
[1739892827367,0.22823034,95519.0,95506.0,0.07189238]
[1739892827578,0.01183034,95519.0,95506.0,0.07189238]
[1739892827781,0.2164,95527.0,95515.0,0.3608]
[1739892827782,0.00015702,95522.0,95515.0,0.3608]
[1739892828072,0.2094248,95517.0,95515.0,0.3608]
[1739892828777,0.001,95519.0,95517.0,0.2094243]
[1739892828976,0.00515671,95518.0,95517.0,0.2094243]
[1739892829379,0.00015702,95522.0,95515.0,0.3608]
[1739892829570,0.00015702,95522.0,95521.0,0.2094157]
[1739892829972,0.12810212,95540.0,95518.0,0.3608]
[1739892830265,0.2093792,95538.0,95529.0,0.3608]
[1739892830470,0.2093836,95536.0,95530.0,0.0568]
[1739892830669,0.2093917,95532.0,95530.0,0.0568]
[1739892831275,0.00517932,95531.0,95530.0,0.0568]
[1739892831476,0.2094135,95522.0,95521.0,0.00015702]
[1739892831678,0.2124135,95522.0,95521.0,0.00015702]
[1739892831976,0.003,95522.0,95521.0,0.00015702]
[1739892832177,0.13171075,95531.0,95521.0,0.00015702]
[1739892833080,0.003,95522.0,95521.0,0.00015702]
[1739892834384,0.12653143,95540.0,95521.0,0.00015702]
[1739892834679,0.12653143,95540.0,95527.0,0.3608]
[1739892834885,0.2093792,95538.0,95528.0,0.2660998]
[1739892835083,0.12653143,95540.0,95528.0,0.0567]
[1739892835284,0.2093581,95548.0,95539.0,0.5701745]
[1739892835486,0.2093581,95548.0,95528.0,0.0567]
[1739892835487,0.2093658,95544.0,95540.0,0.0563]
[1739892835680,0.2164,95558.0,95540.0,0.4171]
[1739892835878,0.0116551,95546.0,95540.0,0.63796662]
[1739892836391,0.00528468,95553.0,95547.0,0.2093567]
[1739892836582,0.00528468,95553.0,95551.0,0.3608]
[1739892836979,0.2164,95558.0,95555.0,0.2093399]
[1739892837176,0.2164,95558.0,95556.0,0.0563]
[1739892837383,0.4257355,95558.0,95556.0,0.0563]
[1739892838383,0.43104564,95558.0,95556.0,0.0563]
[1739892838591,0.22171014,95558.0,95556.0,0.0563]
[1739892838781,0.12653143,95566.0,95562.0,0.2093242]
[1739892838981,0.12653143,95572.0,95563.0,0.0569]
[1739892839190,0.2093203,95565.0,95563.0,0.0569]
[1739892840088,0.2093236,95563.0,95562.0,0.001]
[1739892842785,0.209339,95556.0,95548.0,0.2093558]
[1739892842990,0.12653143,95558.0,95551.0,0.3608]
[1739892843189,0.33586653,95558.0,95551.0,0.3608]
[1739892843389,0.209337,95557.0,95551.0,0.3608]
[1739892843590,0.12653143,95558.0,95556.0,0.2093375]
[1739892843799,0.57585143,95564.0,95556.0,0.2093375]
[1739892843993,0.12653143,95566.0,95559.0,0.3608]
[1739892844289,0.12653143,95566.0,95560.0,0.0583]
[1739892844683,0.2093265,95562.0,95560.0,0.0583]
[1739892845097,0.00519801,95567.0,95565.0,0.2093193]
[1739892845278,0.00519801,95567.0,95560.0,0.0583]
[1739892845279,0.0596,95584.0,95566.0,0.0552]
[1739892845591,0.2092845,95581.0,95572.0,0.2093037]
[1739892845891,0.0596,95584.0,95567.0,0.3608]
[1739892846084,0.00525895,95573.0,95567.0,0.3608]
[1739892846490,0.2093091,95570.0,95567.0,0.3608]
[1739892846994,0.00525895,95573.0,95567.0,0.3608]
[1739892847592,0.01178003,95580.0,95578.0,0.2092903]
[1739892847891,0.12653143,95590.0,95579.0,0.6273879]
[1739892848099,0.12653143,95590.0,95579.0,0.4181]
[1739892848286,0.2092846,95581.0,95579.0,0.4181]
[1739892849199,0.2092846,95581.0,95579.0,0.3608]